bitfinex/quotes_ETHUSD_20250110
["timestamp","ask_amount","ask_price","bid_price","bid_amount"]
[1736516126392,1.5778,3264.1,3262.2,1.5958]
[1736516126551,0.03823043,3264.0,3262.2,1.5958]
[1736516126746,0.32998087,3264.2,3262.3,0.03064543]
[1736516126954,0.1982183,3264.4,3262.3,0.58064543]
[1736516127195,0.1982183,3264.4,3262.5,3.55]
[1736516127380,0.1982183,3264.4,3263.2,3.06443]
[1736516127595,0.1982183,3264.4,3263.4,3.06421]
[1736516127795,0.1982183,3264.4,3262.8,3.0]
[1736516127967,0.1982183,3264.4,3262.2,1.5958]
[1736516128167,0.1982183,3264.4,3262.2,4.5958]
[1736516128365,1.6627,3264.2,3262.2,1.5958]
[1736516128565,5.05025505,3264.1,3262.2,1.5958]
[1736516128869,1.6627,3264.2,3262.3,0.03064878]
[1736516129069,0.1982183,3264.4,3262.3,0.03064878]
[1736516129309,0.1982183,3264.4,3262.3,0.58064878]
[1736516129619,0.1982183,3264.4,3262.3,0.5806343]
[1736516129788,0.1982183,3264.4,3262.3,0.58063686]
[1736516130190,0.1982183,3264.4,3262.2,1.5958]
[1736516130391,2.224,3264.3,3261.4,1.6273]
[1736516130590,0.0225,3263.5,3261.4,1.6273]
[1736516130771,3.06073043,3263.5,3261.4,1.6273]
[1736516131113,3.0,3262.9,3260.5,1.6049]
[1736516131426,0.03823043,3262.8,3260.5,1.6049]
[1736516131714,0.03823043,3262.8,3258.5,0.25]
[1736516131715,0.0225,3262.1,3259.4,1.5823]
[1736516131872,3.25,3262.3,3259.4,1.5823]
[1736516131873,0.0225,3261.9,3259.5,0.03067074]
[1736516132077,0.06073043,3261.9,3259.4,1.74053]
[1736516132502,0.0225,3261.6,3259.5,0.06165512]
[1736516132703,4.6378,3261.7,3258.8,0.03067763]
[1736516133018,1.6378,3261.7,3259.0,0.0075]
[1736516133221,1.6378,3261.7,3259.0,5.05018808]
[1736516133404,0.03823043,3261.6,3259.1,3.0]
[1736516133731,0.0075,3261.4,3259.1,0.06187699]
[1736516133938,0.0075,3260.4,3259.1,0.06187699]
[1736516134078,0.0075,3260.4,3258.7,1.228813]
[1736516134079,0.0075,3259.7,3258.7,1.228813]
[1736516134419,0.0225,3259.1,3256.0,1.5045]
[1736516134726,3.0,3259.3,3258.8,0.06037675]
[1736516135031,0.83943289,3259.2,3256.1,5.01202462]
[1736516135239,0.0225,3259.1,3258.9,0.06032127]
[1736516135387,0.0225,3259.1,3256.1,6.24160362]
[1736516135388,0.80120246,3259.2,3256.3,0.03069229]
[1736516135588,1.5554,3260.6,3257.4,0.55]
[1736516135905,1.5554,3261.5,3259.2,3.55]
[1736516136125,1.5554,3261.5,3259.4,1.5428]
[1736516136300,0.03823043,3261.4,3259.4,1.5428]
[1736516136492,0.03823043,3261.4,3259.5,0.06183052]
[1736516137309,0.015,3261.3,3259.5,0.06183052]
[1736516137632,0.16086304,3261.3,3259.5,0.09250334]
[1736516137840,1.647,3262.3,3259.5,0.03067282]
[1736516137989,8.9425209,3264.6,3259.5,0.03067282]
[1736516137990,1.647,3263.1,3260.4,3.0]
[1736516138334,1.647,3263.1,3261.0,3.0]
[1736516138518,1.647,3264.0,3261.1,0.03065043]
[1736516138718,1.647,3264.0,3261.1,0.09159404]
[1736516138904,0.1647,3263.9,3261.6,1.6022]
[1736516139110,0.03823043,3263.8,3261.6,4.6022]
[1736516139306,0.03823043,3263.8,3261.7,0.06061124]
[1736516140407,3.03823043,3263.8,3260.8,1.627]
[1736516140606,3.03823043,3263.8,3260.9,0.06105442]
[1736516140819,1.39399551,3263.7,3260.9,0.06105442]
[1736516141042,0.82149551,3263.7,3261.0,0.03065682]
[1736516141235,0.03823043,3263.6,3260.9,0.06105442]
[1736516141436,0.015,3263.6,3261.1,0.03065026]
[1736516141642,0.0075,3263.4,3261.0,0.06099901]
[1736516141825,0.03823043,3263.4,3261.2,0.0608882]
[1736516142032,0.27342645,3263.7,3261.3,0.03065174]
[1736516142494,0.27342645,3263.7,3261.1,0.03065476]
[1736516142694,0.27342645,3263.7,3261.2,0.0608882]
[1736516142695,0.03823043,3263.6,3261.2,0.0608882]
[1736516143056,0.1647,3263.9,3261.3,0.03064977]
[1736516143199,0.0075,3263.5,3261.4,0.06077741]
[1736516143396,0.5725,3263.3,3260.8,1.627]
[1736516143713,0.5725,3262.4,3258.6,1.5737]
[1736516144026,1.5004,3262.5,3259.2,1.5737]
[1736516144341,0.03823043,3262.4,3259.7,5.01202462]
[1736516144541,0.17636304,3262.3,3259.3,0.05416442]
[1736516144727,0.015,3262.1,3259.8,0.05388713]
[1736516144899,0.15386304,3262.3,3259.9,0.03066389]
[1736516145095,0.27447778,3262.2,3260.0,0.05211992]
[1736516145438,0.27447778,3262.2,3260.3,0.55]
[1736516145633,0.27447778,3262.2,3260.5,0.55]
[1736516145836,0.27447778,3262.2,3260.4,5.06392279]
[1736516146138,0.27447778,3262.2,3260.5,0.05184275]
[1736516146371,1.5004,3262.5,3260.5,0.05184275]
[1736516146372,0.015,3262.0,3260.5,0.05184275]
[1736516146546,1.5004,3262.5,3260.5,0.05184275]
[1736516146744,1.5004,3262.5,3260.3,0.0306657]
[1736516146956,0.03823043,3262.4,3260.6,0.05017686]
[1736516147121,1.6248,3263.7,3260.7,0.03065857]
[1736516147319,5.01202462,3263.3,3260.8,0.05036591]
[1736516147633,0.0075,3263.0,3260.2,1.5737]
[1736516147809,1.6248,3262.5,3260.2,1.5737]
[1736516148139,0.03823043,3262.4,3260.2,1.5737]
[1736516148439,0.16630304,3262.3,3260.3,0.15737]
[1736516148641,0.16630304,3262.3,3260.3,0.18803155]
[1736516148803,0.27554245,3262.3,3260.3,0.73802876]
[1736516149000,0.27554245,3262.3,3260.5,0.55]
[1736516149199,0.27554245,3262.3,3260.6,0.05046823]
[1736516149400,0.27554245,3262.3,3260.3,0.15737]
[1736516149595,0.27554245,3262.3,3260.2,1.5737]
[1736516149596,0.015,3262.1,3260.2,1.5737]
[1736516149827,0.03823043,3262.1,3260.4,0.05057908]
[1736516150009,0.03823043,3262.1,3260.3,0.05063451]
[1736516150265,0.015,3261.8,3260.4,0.04901812]
[1736516150488,0.0075,3261.7,3259.4,1.6047]
[1736516150659,0.47063304,3261.7,3259.5,0.19114125]
[1736516150863,1.6456,3261.9,3259.6,0.04946166]
[1736516151065,0.03823043,3261.8,3259.6,0.04946166]
[1736516151293,0.27559038,3261.6,3259.6,0.04946166]
[1736516151697,0.27559038,3261.6,3259.7,0.03066237]
[1736516151863,0.27559038,3261.6,3259.7,0.63006706]
[1736516152063,1.5183,3262.9,3260.0,3.0]
[1736516152293,0.45183,3262.8,3260.2,0.55]
[1736516152490,0.49006043,3262.8,3260.4,0.55]
[1736516152792,0.49006043,3262.8,3260.6,0.55]
[1736516152961,0.49006043,3262.8,3260.5,0.0489627]
[1736516152962,0.49006043,3262.8,3260.5,1.01724651]
[1736516153289,0.0225,3262.6,3260.6,0.04890727]
[1736516153491,0.5725,3262.4,3260.5,0.96828381]
[1736516153807,3.06617,3261.4,3260.6,0.03066708]
[1736516154003,0.2758174,3262.3,3260.1,0.03066121]
[1736516154190,0.0075,3262.1,3260.7,0.04884759]
[1736516154392,0.90991914,3262.3,3259.5,0.16047]
[1736516154393,3.06579,3261.8,3259.5,0.16047]
[1736516154577,3.06663,3260.9,3260.8,0.04747558]
[1736516154917,1.6061,3260.8,3258.6,1.5229]
[1736516155133,3.0686,3258.9,3258.1,0.9738925]
[1736516155286,3.06817,3259.3,3257.9,1.6068]
[1736516155481,0.03823043,3259.6,3258.0,0.16068]
[1736516155702,3.06766,3259.9,3258.0,0.16068]
[1736516155703,0.03823043,3259.8,3258.0,0.16068]
[1736516155903,3.06819,3259.3,3258.0,3.23004]
[1736516156076,3.06819,3259.3,3258.1,3.06927]
[1736516156442,3.06819,3259.3,3257.9,1.6068]
[1736516156443,3.06833,3259.1,3257.9,1.6068]
[1736516156571,0.015,3260.3,3258.0,0.03068647]
[1736516156766,3.06729,3260.2,3258.0,0.03068105]
[1736516157016,3.0671,3260.4,3258.0,0.03068105]
[1736516157220,0.03823043,3260.1,3257.9,1.6068]
[1736516157421,4.298,3261.9,3259.8,3.06762]
[1736516157422,3.06648,3261.1,3259.8,3.06762]
[1736516157624,2.81246153,3262.0,3259.2,1.5852]
[1736516157826,3.06669,3260.9,3259.6,3.06776]
[1736516158100,0.27540037,3261.0,3259.5,0.55]
[1736516158319,0.27540037,3261.0,3260.0,3.06745]
[1736516158521,0.27540037,3261.0,3259.5,0.55]
[1736516158728,3.06714,3260.4,3259.2,4.65339]
[1736516158905,3.06699,3260.6,3259.2,1.5852]
[1736516159069,0.03823043,3260.5,3259.2,1.5852]
[1736516159409,0.015,3260.7,3258.5,1.6481]
[1736516159606,3.06797,3259.5,3258.5,1.81291]
[1736516159910,0.03823043,3259.8,3258.6,0.04290659]
[1736516160070,3.015,3260.0,3258.0,0.16068]
[1736516160269,3.015,3260.0,3257.9,1.24798376]
[1736516160270,3.06861,3258.8,3258.7,0.04308109]
[1736516160471,4.71707,3259.2,3257.9,1.24798376]
[1736516160472,3.06936,3258.0,3257.9,1.24798376]
[1736516160699,0.03823043,3258.6,3257.1,1.6481]
[1736516160902,0.31069304,3258.5,3256.5,1.24798376]
[1736516161109,3.07031,3257.0,3256.5,1.24798376]
[1736516161388,3.06917,3258.2,3256.5,1.24798376]
[1736516161389,3.06962,3257.8,3256.5,1.24798376]
[1736516161600,0.27572134,3258.5,3256.6,0.03070502]
[1736516161844,0.27572134,3258.5,3256.7,1.5446]
[1736516162018,0.27572134,3258.5,3257.0,3.07031]
[1736516162184,1e-08,3258.4,3257.9,3.06939]
[1736516162384,1e-08,3258.4,3257.7,3.06963]
[1736516162591,1e-08,3258.4,3256.8,0.77625784]
[1736516163015,1e-08,3258.4,3257.3,3.07001]
[1736516163339,3.06908,3258.3,3256.8,0.31872734]
[1736516163640,0.03823043,3258.2,3256.8,0.31872734]
[1736516163934,3.07087,3256.4,3256.3,1.24798376]
[1736516164284,3.07087,3256.4,3256.0,2.49596752]
[1736516164285,3.07097,3256.3,3256.0,1.27907176]
[1736516164532,1.505,3256.1,3255.9,1.17355145]
[1736516164734,3.07153,3255.7,3254.0,1.27158244]
[1736516164914,0.03823043,3255.6,3254.0,1.27158244]
[1736516165098,0.03823043,3255.6,3254.1,3.073]
[1736516165312,1.505,3256.1,3254.2,0.03072542]
[1736516165513,0.25,3256.9,3254.2,0.03072542]
[1736516165514,3.07052,3256.8,3254.5,3.07266]
[1736516165850,3.06991,3257.5,3255.0,3.0]
[1736516165998,3.07002,3257.3,3255.7,3.07148]
[1736516166201,1.6355,3258.0,3255.8,0.03070813]
[1736516166202,3.06988,3257.5,3255.8,0.03070813]
[1736516166417,1.21496153,3257.8,3255.8,0.03070813]
[1736516166620,3.06994,3257.4,3256.0,3.07123]
[1736516166825,1.21496153,3257.8,3256.3,3.07087]
[1736516166826,4.28452153,3257.8,3256.3,3.07087]
[1736516167039,1.6355,3258.0,3256.4,0.03070117]
[1736516167258,0.03823043,3257.9,3256.3,3.07094]
[1736516167552,1.6355,3258.0,3257.0,3.0703]
[1736516167851,1.5955,3259.6,3257.3,0.55]
[1736516168053,1.5955,3259.6,3258.6,3.0688]
[1736516168356,1.5955,3260.5,3258.7,0.03068343]
[1736516168500,1.21496153,3260.8,3259.2,3.06823]
[1736516168699,1.21496153,3260.8,3259.4,3.06804]
[1736516168932,0.03823043,3260.7,3259.9,3.06757]
[1736516169110,0.03823043,3260.6,3259.8,3.06766]
[1736516169458,0.03823043,3260.6,3258.9,9.61800462]
[1736516169459,3.06719,3260.4,3259.1,3.06827]
[1736516169741,3.06719,3260.4,3257.9,3.06946]
[1736516169742,3.06786,3259.6,3257.9,3.06946]
[1736516169943,3.10621043,3259.5,3257.0,0.30703]
[1736516170146,3.06847,3259.0,3257.2,3.07005]
[1736516170348,0.0075,3258.7,3256.7,1.6141]
[1736516170562,3.07043,3256.9,3256.3,0.15979978]
[1736516170847,1.5599,3257.6,3256.3,0.15979978]
[1736516170848,0.03823043,3256.8,3256.3,0.15979978]
[1736516171012,3.07011,3257.3,3256.3,0.15979978]
[1736516171212,3.377121,3257.3,3256.3,0.15979978]
[1736516171411,0.307011,3257.3,3256.3,0.15979978]
[1736516171627,1.5599,3257.6,3256.4,0.03070479]
[1736516171813,3.07021,3257.1,3256.3,0.15979978]
[1736516172013,3.07087,3256.4,3256.3,0.15979978]
[1736516172549,3.07087,3256.4,3254.0,8.08508462]
[1736516172550,3.07112,3256.2,3254.0,8.08508462]
[1736516172719,3.07211,3255.1,3254.0,1.6614]
[1736516173049,3.07123,3256.1,3254.1,0.06530214]
[1736516173255,1.6172,3256.3,3254.2,3.07287]
[1736516173414,1.6172,3256.3,3254.1,0.06530214]
[1736516173415,3.07106,3256.2,3254.6,3.07256]
[1736516173617,0.03823043,3256.1,3254.2,0.03452193]
[1736516173819,1.6172,3256.3,3254.7,0.03424377]
[1736516174020,1.6172,3257.0,3254.3,0.03072008]
[1736516174239,3.07069,3256.6,3255.4,3.07173]
[1736516174440,0.03823043,3256.5,3255.4,3.07173]
[1736516174623,3.07069,3256.6,3255.5,0.0640809]
[1736516175254,3.07087,3256.4,3255.5,0.03336856]
[1736516175454,3.07163,3255.6,3255.5,0.03336856]
[1736516175662,1.5835,3255.5,3254.1,0.03072565]
[1736516175809,1.5835,3255.5,3253.5,3.07361]
[1736516176173,1.5835,3256.4,3253.6,0.06514568]
[1736516176367,0.03823043,3256.3,3254.8,1.5029]
[1736516176566,3.07221,3255.0,3253.9,1.5029]
[1736516176770,5.01202462,3256.0,3254.0,0.0307247]
[1736516177091,3.84654789,3255.9,3253.3,1.911183]
[1736516177220,3.07256,3254.7,3253.3,4.984973]
[1736516177420,0.0225,3255.8,3253.3,4.984973]
[1736516177421,0.03823043,3254.6,3253.3,1.911183]
[1736516177768,1.5658,3253.1,3252.6,1.231262]
[1736516177945,3.07435,3252.8,3252.6,1.231262]
[1736516178146,3.07486,3252.2,3251.6,1.89623942]
[1736516178482,3.07445,3252.7,3251.6,1.89623942]
[1736516178483,3.07507,3252.0,3251.6,1.89623942]
[1736516178766,3.07507,3252.0,3251.5,0.005]
[1736516178965,1.5658,3253.1,3251.5,0.005]
[1736516179126,3.07428,3252.8,3251.5,0.005]
[1736516179321,1.5658,3253.1,3251.5,0.005]
[1736516179563,3.07445,3252.7,3251.5,0.005]
[1736516179760,0.03823043,3252.6,3251.5,0.005]
[1736516179962,3.07475,3252.3,3251.5,0.005]
[1736516180135,0.03823043,3252.2,3251.5,0.005]
[1736516180335,3.07536,3251.7,3251.5,0.005]
[1736516180663,1.5152,3251.6,3251.5,1e-05]
[1736516180864,1.55343043,3251.6,3251.5,1e-05]
[1736516181070,1.5152,3251.6,3251.5,1e-05]
[1736516181276,0.03823043,3251.6,3251.5,1e-05]
[1736516181444,6.08181105,3251.6,3251.1,9e-07]
[1736516181638,7.69868,3251.2,3251.1,9e-07]
[1736516181857,7.69118,3251.2,3251.1,9e-07]
[1736516182037,7.71368,3251.2,3251.1,9e-07]
[1736516182363,4.69118,3251.2,3251.1,9e-07]
[1736516182569,0.25,3250.6,3249.1,1.232585]
[1736516182755,3.07763,3249.3,3249.1,1.232585]
[1736516182954,9.64567462,3249.6,3249.2,2.83e-06]
[1736516183145,3.07758,3249.3,3247.7,0.1725209]
[1736516183340,0.307758,3249.2,3247.7,0.1725209]
[1736516183547,3.07796,3248.9,3247.7,0.1725209]
[1736516183748,3.07782,3249.1,3247.7,0.1725209]
[1736516183975,5.01202462,3249.7,3247.7,0.1725209]
[1736516184193,3.0,3249.4,3247.7,0.1725209]
[1736516184375,5.01202462,3249.1,3247.8,0.03271312]
[1736516184545,3.079,3247.8,3247.7,0.1725209]
[1736516184949,3.07875,3248.1,3247.7,0.1725209]
[1736516185295,3.07892,3247.9,3247.7,0.1725209]
[1736516185580,0.03823043,3248.1,3247.7,0.1725209]
[1736516185746,0.03823043,3247.8,3247.7,0.1725209]
[1736516185941,0.34994547,3247.8,3247.7,9e-07]
[1736516186186,3.34994547,3247.8,3247.7,9e-07]
[1736516186345,3.31171504,3247.8,3247.7,9e-07]
[1736516186545,3.34994547,3247.8,3247.7,9e-07]
[1736516186770,9.61514462,3247.9,3247.7,9e-07]
[1736516187086,0.03823043,3247.8,3247.7,9e-07]
[1736516187283,3.59573043,3247.8,3247.7,9e-07]
[1736516187639,3.08041,3246.4,3245.2,1.6196]
[1736516187939,3.08017,3246.6,3245.3,0.06866524]
[1736516188144,3.08017,3246.6,3245.3,0.31884176]
[1736516188346,5.01202462,3247.6,3245.4,0.03653928]
[1736516188545,3.07929,3247.5,3245.4,3.08122]
[1736516188770,3.07929,3247.5,3245.2,1.6196]
[1736516188771,3.07948,3247.3,3245.5,3.11763334]
[1736516188960,3.07929,3247.5,3245.6,3.08104]
[1736516189290,3.08027,3246.5,3245.7,0.03637147]
[1736516189489,0.03851178,3246.4,3244.8,3.08184]
[1736516189650,3.08055,3246.2,3244.8,3.08184]
[1736516189847,8.09181462,3247.0,3245.8,0.03631554]
[1736516190074,1.626,3247.3,3245.8,3.08089]
[1736516190275,3.07876,3248.1,3245.9,0.308089]
[1736516190452,4.70487,3248.0,3246.0,1.5624]
[1736516190648,4.70487,3248.0,3245.1,3.08155]
[1736516190649,0.25,3247.1,3245.1,3.08155]
[1736516190886,1.626,3246.8,3244.7,1.5624]
[1736516191089,1.626,3246.8,3244.7,1.72216893]
[1736516191261,3.08025,3246.5,3244.8,3.08185]
[1736516191472,1.5377,3248.0,3245.0,0.015]
[1736516191676,3.0792,3247.6,3244.9,0.25]
[1736516191884,3.11780001,3247.5,3245.1,0.05920712]
[1736516192087,3.07903,3247.8,3245.5,38.09618]
[1736516192406,1.5818,3248.8,3246.1,3.63061]
[1736516192563,0.03848566,3248.7,3246.3,1.5912]
[1736516192769,3.07879,3248.1,3246.8,3.07994]
[1736516193073,1.5818,3248.8,3246.9,0.03570053]
[1736516193417,0.03848567,3248.7,3246.9,0.03570053]
[1736516193701,3.07902,3247.8,3246.4,3.0803]
[1736516194017,3.07967,3247.1,3247.0,0.03422759]
[1736516194300,3.08046,3246.3,3245.6,1.632]
[1736516194513,3.11818086,3247.1,3247.0,0.03424901]
[1736516194689,3.11817857,3247.1,3245.0,3.08158]
[1736516195004,1.5829,3247.2,3245.6,3.08108]
[1736516195348,5.01202462,3248.7,3245.8,1.601]
[1736516195515,8.77,3250.7,3246.8,1.601]
[1736516195516,5.01202462,3249.9,3246.8,1.601]
[1736516195734,8.08905462,3249.9,3246.9,3.07986]
[1736516195864,3.07893,3247.9,3246.8,1.601]
[1736516196064,3.07958,3247.2,3246.0,3.08068]
[1736516196265,5.01202462,3248.7,3245.8,1.5339]
[1736516196266,3.0,3248.4,3246.2,3.08051]
[1736516196581,3.0,3247.4,3245.1,1.671974]
[1736516196783,3.07984,3247.0,3245.6,3.08104]
[1736516196980,3.08028,3246.5,3245.3,3.08131]
[1736516197176,3.0,3247.1,3245.1,1.671974]
[1736516197177,0.03850674,3246.4,3245.1,1.671974]
[1736516197381,0.0075,3246.7,3245.1,0.138074]
[1736516197623,11.09245462,3246.3,3245.1,0.138074]
[1736516197936,3.08129,3245.4,3245.1,0.138074]
[1736516198138,3.08147,3245.2,3245.1,0.138074]
[1736516198442,3.0,3245.0,3242.7,1.5298]
[1736516198584,0.0385331,3244.9,3242.7,1.5298]
[1736516198939,3.08145,3245.3,3242.7,4.61359]
[1736516199223,3.08167,3245.0,3242.8,0.461359]
[1736516199404,4.24480546,3246.2,3244.2,1.6016]
[1736516199605,1.516,3246.5,3244.6,3.08203]
[1736516199905,3.237,3248.0,3244.9,1.6603]
[1736516200073,1.528,3248.1,3246.0,3.0]
[1736516200276,3.07789,3249.0,3246.1,1.6603]
[1736516200476,1.662,3248.9,3246.2,0.19103]
[1736516200722,4.73997,3248.9,3246.7,6.1601]
[1736516200921,1.662,3248.9,3246.5,3.08024]
[1736516201216,3.07863,3248.2,3246.8,3.11303179]
[1736516201416,3.07895,3247.9,3246.8,3.07994]
[1736516201640,0.0384903,3247.8,3246.9,0.0331059]
[1736516201850,5.01202462,3248.8,3246.9,0.0331059]
[1736516202127,3.0,3248.1,3245.8,1.6434]
[1736516202429,3.07843,3248.4,3247.0,0.03305001]
[1736516202607,3.07978,3247.0,3245.8,1.6434]
[1736516202878,1.5616,3247.9,3245.8,1.6434]
[1736516203027,3.08033,3246.4,3245.9,0.03366498]
[1736516203184,0.03850952,3246.3,3245.2,3.08145]
[1736516203386,0.03850952,3246.3,3244.9,1.5668]
[1736516203586,1.5245,3246.3,3245.3,0.03400059]
[1736516203891,3.08133,3245.4,3243.8,1.6626]
[1736516204140,0.038519,3246.2,3243.8,1.6626]
[1736516204141,4.60498,3246.3,3245.4,0.03394465]
[1736516204319,3.03851785,3246.2,3244.3,3.0823]
[1736516204648,3.08109,3245.6,3245.5,8.7e-06]
[1736516204851,3.08168,3245.0,3243.8,1.6626]
[1736516205005,3.08099,3245.7,3243.8,1.6626]
[1736516205006,0.03852976,3244.9,3243.8,1.6626]
[1736516205207,3.08175,3244.9,3243.9,0.03365483]
[1736516205420,0.0075,3244.7,3243.9,0.03365483]
[1736516205716,3.12055093,3244.7,3242.3,0.25]
[1736516205886,3.08149,3245.2,3244.0,0.03359884]
[1736516206086,3.08059,3246.2,3243.9,3.08266]
[1736516206087,1.5017,3246.3,3243.9,0.0075]
[1736516206292,3.08052,3246.2,3244.7,3.08192]
[1736516206538,1.5017,3247.2,3244.7,1.916892]
[1736516206738,1.5017,3247.2,3245.9,3.08074]
[1736516207073,3.07901,3247.8,3245.3,3.0]
[1736516207201,3.07842,3248.5,3247.1,3.07964]
[1736516207406,3.07874,3248.1,3246.3,3.09543]
[1736516207642,1.6266,3248.8,3246.6,3.08008]
[1736516207845,3.1166452,3248.7,3247.3,3.07944]
[1736516208048,3.1166452,3248.7,3247.5,3.07923]
[1736516208215,1.6266,3248.8,3247.4,0.03030623]
[1736516208557,3.079,3247.9,3246.5,3.08018]
[1736516208731,3.079,3247.9,3246.1,4.66625]
[1736516208732,0.03849229,3247.8,3247.5,0.0324111]
[1736516208899,3.07862,3248.2,3246.1,1.5857]
[1736516209114,3.0,3247.9,3247.6,4.49e-06]
[1736516209562,3.08009,3246.7,3245.3,1.5705]
[1736516209792,0.03850583,3246.6,3245.3,1.5705]
[1736516209917,3.0,3247.0,3244.5,1.6614]
[1736516210116,0.55,3246.3,3244.6,0.0330704]
[1736516210397,3.08005,3246.7,3244.5,1.6614]
[1736516210562,3.63052,3246.2,3243.8,3.08272]
[1736516210857,3.08194,3244.7,3244.6,4e-07]
[1736516211073,3.08194,3244.7,3243.6,0.005]
[1736516211074,3.08289,3243.7,3243.6,0.005]
[1736516211246,258.6070849,3240.0,3239.9,3.08651]
[1736516211445,253.77671909,3240.0,3239.9,3.08651]
[1736516211715,251.89671909,3240.0,3239.9,6.507871]
[1736516211916,245.83891909,3240.0,3239.9,5.58582552]
[1736516212195,240.67979994,3240.0,3239.9,5.430361]
[1736516212319,215.31069266,3240.0,3239.9,5.430361]
[1736516212665,165.8634996,3240.0,3239.9,14.22905535]
[1736516212861,165.8634996,3240.0,3239.9,19.22905535]
[1736516212862,95.6161969,3240.0,3239.9,19.22905535]
[1736516213158,6.55e-06,3240.0,3239.9,54.23205708]
[1736516213377,1.566,3245.2,3243.6,0.0075]
[1736516213592,3.08033,3246.4,3244.5,3.08208]
[1736516213593,0.25,3245.9,3244.5,3.08208]
[1736516213725,1.566,3246.3,3244.7,3.0]
[1736516213920,4.569,3246.9,3244.8,0.04270745]
[1736516213921,0.25,3245.5,3244.8,0.04270745]
[1736516214146,0.25,3246.2,3243.7,35.0]
[1736516214448,0.25,3246.5,3244.5,3.08208]
[1736516214654,3.32998,3246.8,3245.3,3.08137]
[1736516214876,0.25,3245.7,3244.6,0.04287535]
[1736516215092,0.25,3245.7,3245.4,0.04220388]
[1736516215252,0.25,3245.9,3243.6,0.15954989]
[1736516215253,0.25,3245.3,3243.6,0.15954989]
[1736516215435,3.33166,3245.0,3243.5,3.08307]
[1736516215634,0.2885195,3245.2,3242.2,3.08426]
[1736516215635,0.25,3244.5,3243.7,0.04140467]
[1736516215976,0.25,3244.4,3243.8,0.03756424]
[1736516216191,0.5,3243.9,3241.4,3.08508]
[1736516216483,0.25,3243.0,3241.3,3.08514]
[1736516216695,0.25,3242.5,3241.5,0.04325395]
[1736516216835,0.25,3243.0,3241.6,3.08488]
[1736516217042,3.33358,3243.0,3241.6,3.08488]
[1736516217349,0.25,3243.7,3241.9,3.09201]
[1736516217555,0.25,3243.3,3242.0,0.04283344]
[1736516217758,3.33341,3243.2,3241.6,3.08482]
[1736516217949,0.25,3243.3,3241.7,0.03916885]
[1736516218158,0.25,3243.7,3241.7,0.03916885]
[1736516218342,0.25,3243.5,3241.8,0.0075]
[1736516218649,0.25,3243.4,3242.2,3.08427]
[1736516218889,0.25,3243.4,3241.9,0.04291753]
[1736516218890,0.25,3243.2,3241.9,0.04291753]
[1736516219051,0.25,3243.1,3242.3,0.04258119]
[1736516219252,0.25,3243.3,3242.3,0.04258119]
[1736516219442,0.25,3243.1,3241.4,3.08506]
[1736516219642,0.25,3242.9,3242.4,0.03863375]
[1736516219939,0.25,3242.9,3241.3,0.31850067]
[1736516219940,0.25,3242.5,3241.4,0.0075]
[1736516220175,0.25,3243.0,3242.5,0.0363468]
[1736516220477,0.5,3243.5,3241.4,3.08508]
[1736516220652,0.5,3243.5,3242.6,0.03627675]
[1736516220984,0.25,3243.8,3242.7,3.08375]
[1736516221293,0.25,3243.0,3242.7,0.0362067]
[1736516221503,0.21503,3243.8,3242.7,0.0362067]
[1736516221504,0.25,3242.8,3242.7,0.0362067]
[1736516221706,0.25,3242.5,3241.6,0.31852761]
[1736516221908,0.5,3243.2,3241.6,0.31852761]
[1736516222071,0.25,3243.3,3242.7,0.03057275]
[1736516222265,0.25,3243.3,3242.3,3.08415]
[1736516222595,0.25,3243.7,3242.4,35.03073659]
[1736516222899,3.33337,3243.2,3242.4,0.03073659]
[1736516223107,0.25,3242.1,3241.6,0.31852761]
[1736516223311,0.25,3241.9,3241.6,0.31852761]
[1736516223535,4.78098446,3243.1,3241.6,0.31852761]
[1736516223536,3.0848,3241.7,3241.6,0.31852761]
[1736516223675,3.33416,3242.4,3240.6,0.15957135]
[1736516223676,0.25,3242.0,3240.7,3.08575]
[1736516223871,0.25,3241.8,3240.6,0.15957135]
[1736516224096,0.25,3240.7,3240.6,0.15957135]
[1736516224416,0.28857132,3240.7,3240.6,0.15957135]
[1736516224636,0.03857132,3240.7,3240.6,0.15957135]
[1736516224775,0.25,3240.9,3240.6,0.15957135]
[1736516224972,1.6407,3241.3,3240.6,0.15957135]
[1736516224973,0.25,3241.2,3240.6,0.15957135]
[1736516225220,0.25,3240.2,3238.5,1.235978]
[1736516225374,0.25,3240.1,3238.8,3.08756]
[1736516225713,0.25,3240.1,3237.5,3.75103979]
[1736516225714,0.25,3239.5,3238.6,3.08775]
[1736516225937,0.25,3240.3,3238.6,3.08775]
[1736516226074,0.25,3240.5,3239.8,3.08659]
[1736516226275,0.25,3240.7,3239.0,3.0]
[1736516226475,0.25,3241.0,3239.8,3.0866]
[1736516226671,0.25,3240.5,3239.5,3.08683]
[1736516226929,0.0385674,3241.0,3238.8,3.0875]
[1736516226930,0.25,3240.1,3238.8,3.0875]
[1736516227136,0.25,3239.4,3238.8,3.08754]
[1736516227416,1.5879,3239.9,3238.7,0.1642038]
[1736516227417,0.25,3239.2,3238.7,0.1642038]
[1736516227600,0.25,3239.6,3238.7,0.1642038]
[1736516227808,0.25,3239.2,3238.7,0.1642038]
[1736516228005,0.25,3238.8,3238.7,0.1642038]
[1736516228530,0.25,3239.5,3239.3,3.087]
[1736516228735,1.5879,3239.9,3238.7,0.1642038]
[1736516228736,0.25,3240.3,3239.4,3.08697]
[1736516228921,0.25,3240.2,3238.7,0.1642038]
[1736516229082,0.25,3240.2,3239.5,3.08688]
[1736516229276,0.25,3239.6,3238.7,3.2518338]
[1736516229485,0.25,3240.0,3238.8,35.0]
[1736516229684,1.6308,3240.6,3239.2,0.015]
[1736516229685,0.25,3240.6,3239.2,0.015]